[Event "*** SCC Grand Prix: Titled Tuesday Blitz"]
[Site "Chess.com"]
[Date "2020.10.06"]
[Round "4"]
[White "Oleksandr_Bortnyk"]
[Black "Gabrielian_Artur"]
[Result "1/2-1/2"]
[WhiteElo "2898"]
[BlackElo "2754"]
[TimeControl "180+1"]
[EndTime "10:40:33 PDT"]
[Termination "Game drawn by agreement"]

1. d4 {[%clk 0:02:59.3]} 1... Nf6 {[%clk 0:02:59.8]} 2. Nc3 {[%clk 0:02:59.2]}
2... d5 {[%clk 0:02:59.4]} 3. Bf4 {[%clk 0:02:59.4]} 3... e6 {[%clk 0:02:56.8]}
4. Nb5 {[%clk 0:02:59.4]} 4... Na6 {[%clk 0:02:56.5]} 5. e3 {[%clk 0:03:00]}
5... Be7 {[%clk 0:02:55.8]} 6. Nf3 {[%clk 0:03:00.1]} 6... O-O {[%clk
0:02:55.9]} 7. Ne5 {[%clk 0:03:00.7]} 7... c6 {[%clk 0:02:53.3]} 8. Nc3 {[%clk
0:03:01]} 8... Nc7 {[%clk 0:02:53.7]} 9. Qf3 {[%clk 0:03:00.5]} 9... Nce8 {[%clk
0:02:53.9]} 10. Bd3 {[%clk 0:03:00]} 10... Nd6 {[%clk 0:02:54.2]} 11. g4 {[%clk
0:02:54.8]} 11... Qa5 {[%clk 0:02:36.7]} 12. Kf1 {[%clk 0:02:36]} 12... c5
{[%clk 0:02:32.5]} 13. g5 {[%clk 0:02:34.3]} 13... Nfe4 {[%clk 0:02:32.3]} 14.
Nxe4 {[%clk 0:02:29.5]} 14... dxe4 {[%clk 0:02:31.6]} 15. Bxe4 {[%clk
0:02:30.4]} 15... Nxe4 {[%clk 0:02:30.5]} 16. Qxe4 {[%clk 0:02:31.3]} 16... cxd4
{[%clk 0:02:26.2]} 17. exd4 {[%clk 0:02:32.2]} 17... Rd8 {[%clk 0:02:11.2]} 18.
c3 {[%clk 0:02:30.3]} 18... Qb5+ {[%clk 0:01:58.3]} 19. Qe2 {[%clk 0:02:29.3]}
19... Qd5 {[%clk 0:01:56.4]} 20. Qf3 {[%clk 0:02:24.3]} 20... Qb5+ {[%clk
0:01:53.9]} 21. Qe2 {[%clk 0:02:15.9]} 21... Qd5 {[%clk 0:01:53.7]} 22. Rg1
{[%clk 0:02:14.6]} 22... b6 {[%clk 0:01:53.6]} 23. b3 {[%clk 0:01:58.4]} 23...
a5 {[%clk 0:01:52.8]} 24. Rd1 {[%clk 0:01:57.3]} 24... a4 {[%clk 0:01:49.9]} 25.
c4 {[%clk 0:01:55.9]} 25... Qb7 {[%clk 0:01:49]} 26. Qf3 {[%clk 0:01:24.2]}
26... axb3 {[%clk 0:01:45.2]} 27. axb3 {[%clk 0:01:21]} 27... Qxf3 {[%clk
0:01:43.2]} 28. Nxf3 {[%clk 0:01:21.9]} 28... Ra3 {[%clk 0:01:41]} 29. Ne5
{[%clk 0:01:06.5]} 29... Bb7 {[%clk 0:01:25.6]} 30. Rg3 {[%clk 0:01:06.3]} 30...
Kf8 {[%clk 0:01:16.2]} 31. h4 {[%clk 0:01:04.1]} 31... Be4 {[%clk 0:01:01.6]}
32. Re1 {[%clk 0:00:46.3]} 32... Bc2 {[%clk 0:00:55.2]} 33. Nc6 {[%clk 0:00:44]}
33... Rc8 {[%clk 0:00:46.5]} 34. Nxe7 {[%clk 0:00:39.2]} 34... Kxe7 {[%clk
0:00:46.7]} 35. Ree3 {[%clk 0:00:25.2]} 35... Kd7 {[%clk 0:00:40.5]} 36. d5
{[%clk 0:00:23.3]} 36... exd5 {[%clk 0:00:37.2]} 37. cxd5 {[%clk 0:00:24.2]}
37... Bf5 {[%clk 0:00:31.3]} 38. Kg2 {[%clk 0:00:17.7]} 38... g6 {[%clk
0:00:18.8]} 39. Be5 {[%clk 0:00:07.5]} 39... Ra5 {[%clk 0:00:16.6]} 40. d6
{[%clk 0:00:05.7]} 40... Re8 {[%clk 0:00:16.1]} 41. Bd4 {[%clk 0:00:05.6]} 41...
Rxe3 {[%clk 0:00:09.1]} 42. Rxe3 {[%clk 0:00:06.5]} 42... Be6 {[%clk 0:00:09.4]}
43. Bxb6 {[%clk 0:00:03]} 43... Rb5 {[%clk 0:00:09.8]} 44. Bc7 {[%clk 0:00:03]}
44... Rxb3 {[%clk 0:00:09.8]} 45. Re5 {[%clk 0:00:03.6]} 45... Rd3 {[%clk
0:00:08.8]} 46. Ra5 {[%clk 0:00:03.7]} 46... Bd5+ {[%clk 0:00:08.6]} 47. Kh2
{[%clk 0:00:04.2]} 47... Ke6 {[%clk 0:00:07.3]} 48. Bb8 {[%clk 0:00:03.4]} 48...
Rd2 {[%clk 0:00:07.3]} 49. Kg3 {[%clk 0:00:03.4]} 49... Rd3+ {[%clk 0:00:07.8]}
50. Kh2 {[%clk 0:00:03.4]} 50... Rd2 {[%clk 0:00:08]} 51. Ba7 {[%clk 0:00:03.8]}
51... Kxd6 {[%clk 0:00:07.4]} 52. Ra3 {[%clk 0:00:03.9]} 52... Rd1 {[%clk
0:00:07.2]} 53. Kg3 {[%clk 0:00:03.5]} 53... Rg1+ {[%clk 0:00:06.5]} 54. Kf4
{[%clk 0:00:03.8]} 54... Rc1 {[%clk 0:00:06.5]} 55. f3 {[%clk 0:00:03.4]} 55...
Rc4+ {[%clk 0:00:06.3]} 56. Kg3 {[%clk 0:00:04]} 56... Ke6 {[%clk 0:00:06.7]}
57. Re3+ {[%clk 0:00:03.7]} 57... Kd7 {[%clk 0:00:07.2]} 58. Bb8 {[%clk
0:00:04.6]} 58... Be6 {[%clk 0:00:07.2]} 59. Be5 {[%clk 0:00:04.7]} 59... Kc6
{[%clk 0:00:05.7]} 60. Rd3 {[%clk 0:00:04.7]} 60... Rb4 {[%clk 0:00:04.8]} 61.
Bd4 {[%clk 0:00:04.4]} 61... Rb3 {[%clk 0:00:04.8]} 62. Bc3 {[%clk 0:00:04.8]}
62... Kb5 {[%clk 0:00:04.4]} 63. Re3 {[%clk 0:00:05.1]} 63... Kc4 {[%clk
0:00:04.7]} 64. Bd2 {[%clk 0:00:05.6]} 64... Rxe3 {[%clk 0:00:04.8]} 65. Bxe3
{[%clk 0:00:06.5]} 65... Kd5 {[%clk 0:00:05.4]} 66. Kf4 {[%clk 0:00:07.4]} 66...
Bf5 {[%clk 0:00:05.7]} 67. Bc1 {[%clk 0:00:07.8]} 67... Bc2 {[%clk 0:00:05.8]}
68. Bb2 {[%clk 0:00:08.7]} 68... Bb1 {[%clk 0:00:06.1]} 69. Bf6 {[%clk 0:00:09]}
69... Bc2 {[%clk 0:00:06.4]} 70. Kg4 {[%clk 0:00:09.5]} 70... Bd1 {[%clk
0:00:06.6]} 71. Kg3 {[%clk 0:00:09.5]} 71... Be2 {[%clk 0:00:06.8]} 72. Kf2
{[%clk 0:00:09.9]} 72... Bd3 {[%clk 0:00:07]} 73. Ke3 {[%clk 0:00:10.5]} 73...
Bb1 {[%clk 0:00:07.7]} 74. f4 {[%clk 0:00:11]} 74... Bc2 {[%clk 0:00:08.2]} 75.
Be5 {[%clk 0:00:11.9]} 75... Bf5 {[%clk 0:00:08.6]} 76. Kf3 {[%clk 0:00:12.4]}
76... Ke6 {[%clk 0:00:09.5]} 77. Kg3 {[%clk 0:00:12.7]} 77... Bb1 {[%clk
0:00:10]} 78. Kg4 {[%clk 0:00:12.7]} 78... Bf5+ {[%clk 0:00:10.9]} 79. Kf3
{[%clk 0:00:13]} 79... Bd3 {[%clk 0:00:11.2]} 80. Ke3 {[%clk 0:00:13.6]} 80...
Bf5 {[%clk 0:00:12.1]} 81. Kd4 {[%clk 0:00:14.5]} 81... Bg4 {[%clk 0:00:12.5]}
82. Ke4 {[%clk 0:00:13.7]} 82... Bf5+ {[%clk 0:00:12.9]} 1/2-1/2

[Event "*** SCC Grand Prix: Titled Tuesday Blitz"]
[Site "Chess.com"]
[Date "2020.10.06"]
[Round "4"]
[White "tigra"]
[Black "suyu28"]
[Result "1-0"]
[WhiteElo "2830"]
[BlackElo "2584"]
[TimeControl "180+1"]
[EndTime "10:40:37 PDT"]
[Termination "tigra won by resignation"]

1. e4 {[%clk 0:03:00.9]} 1... c6 {[%clk 0:02:59.8]} 2. d3 {[%clk 0:02:55.3]}
2... d5 {[%clk 0:03:00.7]} 3. Nd2 {[%clk 0:02:56.1]} 3... e5 {[%clk 0:02:57]} 4.
Ngf3 {[%clk 0:02:56.2]} 4... Bd6 {[%clk 0:02:57.3]} 5. d4 {[%clk 0:02:56.1]}
5... exd4 {[%clk 0:02:55.7]} 6. exd5 {[%clk 0:02:56.5]} 6... cxd5 {[%clk
0:02:55.7]} 7. Nxd4 {[%clk 0:02:55]} 7... Nf6 {[%clk 0:02:39.9]} 8. Bb5+ {[%clk
0:02:50.9]} 8... Bd7 {[%clk 0:02:29.3]} 9. Qe2+ {[%clk 0:02:50.5]} 9... Be7
{[%clk 0:02:28.7]} 10. Nf5 {[%clk 0:02:45.8]} 10... Kf8 {[%clk 0:02:05.4]} 11.
Bxd7 {[%clk 0:02:42.3]} 11... Qxd7 {[%clk 0:02:05.4]} 12. Nxe7 {[%clk
0:02:39.8]} 12... Qxe7 {[%clk 0:02:05.7]} 13. Qxe7+ {[%clk 0:02:40.7]} 13...
Kxe7 {[%clk 0:02:05.6]} 14. Nf3 {[%clk 0:02:39.5]} 14... Nc6 {[%clk 0:02:04.5]}
15. Be3 {[%clk 0:02:37.5]} 15... Ne4 {[%clk 0:01:49.3]} 16. O-O-O {[%clk
0:02:35.6]} 16... Rhd8 {[%clk 0:01:49.2]} 17. Rhe1 {[%clk 0:02:34.2]} 17... Kf8
{[%clk 0:01:42.7]} 18. Nd4 {[%clk 0:02:34]} 18... Ne7 {[%clk 0:01:13.8]} 19. Nb5
{[%clk 0:02:05.2]} 19... a6 {[%clk 0:01:09.1]} 20. Bb6 {[%clk 0:01:59.6]} 20...
Rd7 {[%clk 0:00:33.6]} 21. Rxe4 {[%clk 0:01:35]} 21... axb5 {[%clk 0:00:32.2]}
22. Kb1 {[%clk 0:01:34.2]} 22... Nc6 {[%clk 0:00:26.3]} 23. Bc5+ {[%clk
0:01:32.1]} 23... Kg8 {[%clk 0:00:26.4]} 24. Re3 {[%clk 0:01:31.9]} 24... f6
{[%clk 0:00:26.1]} 25. Rb3 {[%clk 0:01:30.9]} 25... Ra5 {[%clk 0:00:22.1]} 26.
Bb6 {[%clk 0:01:30.2]} 26... Ra4 {[%clk 0:00:20.6]} 27. Rxb5 {[%clk 0:01:30]}
27... Rg4 {[%clk 0:00:18.8]} 28. g3 {[%clk 0:01:28.6]} 28... d4 {[%clk
0:00:19.2]} 29. f3 {[%clk 0:01:11.8]} 29... Rg6 {[%clk 0:00:19.1]} 30. c3 {[%clk
0:01:10.9]} 30... d3 {[%clk 0:00:18.9]} 31. Kc1 {[%clk 0:01:10.5]} 31... Rh6
{[%clk 0:00:19.2]} 32. h4 {[%clk 0:01:01.9]} 32... Ne5 {[%clk 0:00:19.4]} 33. f4
{[%clk 0:00:59.1]} 33... Nf3 {[%clk 0:00:15.4]} 34. Rb4 {[%clk 0:00:41.6]} 34...
Rg6 {[%clk 0:00:14.2]} 35. Bf2 {[%clk 0:00:39.8]} 35... f5 {[%clk 0:00:11.9]}
36. a4 {[%clk 0:00:35.3]} 36... Re6 {[%clk 0:00:12]} 37. Bd4 {[%clk 0:00:34.6]}
37... d2+ {[%clk 0:00:09.7]} 38. Kc2 {[%clk 0:00:33.8]} 38... Re1 {[%clk
0:00:09.8]} 39. a5 {[%clk 0:00:28.8]} 39... Rde7 {[%clk 0:00:10.2]} 40. Be5
{[%clk 0:00:22.2]} 40... Rd7 {[%clk 0:00:06.6]} 41. Rc4 {[%clk 0:00:17.8]} 41...
Kf7 {[%clk 0:00:05.4]} 42. b4 {[%clk 0:00:14.6]} 42... Rd3 {[%clk 0:00:04.6]}
43. Rc7+ {[%clk 0:00:11.9]} 43... Ke6 {[%clk 0:00:04.9]} 44. Bxg7 {[%clk
0:00:11.7]} 44... Rde3 {[%clk 0:00:05]} 45. Rxd2 {[%clk 0:00:11]} 45... Nxd2
{[%clk 0:00:04.4]} 46. Kxd2 {[%clk 0:00:11.9]} 46... R1e2+ {[%clk 0:00:04.9]}
47. Kd1 {[%clk 0:00:12.3]} 47... Re1+ {[%clk 0:00:05.4]} 48. Kc2 {[%clk
0:00:12.8]} 48... R1e2+ {[%clk 0:00:05.3]} 49. Kb3 {[%clk 0:00:13.2]} 49... Rxg3
{[%clk 0:00:06.1]} 50. Rxb7 {[%clk 0:00:13.1]} 50... Kd5 {[%clk 0:00:04.6]} 51.
Bd4 {[%clk 0:00:12.5]} 51... Rgg2 {[%clk 0:00:04.2]} 52. a6 {[%clk 0:00:11.7]}
52... Ra2 {[%clk 0:00:03.9]} 53. Rb5+ {[%clk 0:00:09.8]} 53... Ke4 {[%clk
0:00:03.8]} 54. Re5+ {[%clk 0:00:08.3]} 54... Kxf4 {[%clk 0:00:02.4]} 55. b5
{[%clk 0:00:07.8]} 55... Rgb2+ {[%clk 0:00:02.6]} 56. Kc4 {[%clk 0:00:08.2]}
56... Ra4+ {[%clk 0:00:02.5]} 57. Kc5 {[%clk 0:00:08.6]} 57... Ra5 {[%clk
0:00:02.8]} 58. c4 {[%clk 0:00:09.1]} 58... Rb1 {[%clk 0:00:02.4]} 59. Re7
{[%clk 0:00:09.3]} 59... Kg3 {[%clk 0:00:02.2]} 60. Kb6 {[%clk 0:00:09]} 60...
Ra4 {[%clk 0:00:02.4]} 61. a7 {[%clk 0:00:09.1]} 61... f4 {[%clk 0:00:02.9]} 62.
Be5 {[%clk 0:00:08.1]} 62... Kg4 {[%clk 0:00:02.7]} 63. Rg7+ {[%clk 0:00:08]}
63... Kf5 {[%clk 0:00:02.7]} 64. Bxf4 {[%clk 0:00:08]} 64... Kxf4 {[%clk
0:00:03]} 65. Rxh7 {[%clk 0:00:08.1]} 65... Rba1 {[%clk 0:00:02.7]} 66. c5
{[%clk 0:00:08.1]} 66... Ke5 {[%clk 0:00:02.8]} 67. c6 {[%clk 0:00:08.5]} 67...
Kd6 {[%clk 0:00:03.1]} 68. Rd7+ {[%clk 0:00:08.7]} 68... Ke6 {[%clk 0:00:03.2]}
69. h5 {[%clk 0:00:09.6]} 69... Rb4 {[%clk 0:00:01.7]} 70. h6 {[%clk 0:00:09.3]}
70... Rb3 {[%clk 0:00:01.2]} 71. h7 {[%clk 0:00:09.3]} 71... Rab1 {[%clk
0:00:01.7]} 72. a8=Q {[%clk 0:00:08.9]} 72... Rxb5+ {[%clk 0:00:02.3]} 73. Kc7
{[%clk 0:00:09.2]} 73... Rb7+ {[%clk 0:00:01.2]} 74. Qxb7 {[%clk 0:00:08.8]} 1-0

[Event "*** SCC Grand Prix: Titled Tuesday Blitz"]
[Site "Chess.com"]
[Date "2020.10.06"]
[Round "4"]
[White "xamax2000"]
[Black "banane_verte"]
[Result "1/2-1/2"]
[WhiteElo "2661"]
[BlackElo "2449"]
[TimeControl "180+1"]
[EndTime "10:40:38 PDT"]
[Termination "Game drawn by repetition"]

1. d4 {[%clk 0:03:00.9]} 1... Nf6 {[%clk 0:02:59.9]} 2. c4 {[%clk 0:03:01.1]}
2... e6 {[%clk 0:03:00.2]} 3. g3 {[%clk 0:02:57.2]} 3... d5 {[%clk 0:02:59.7]}
4. Bg2 {[%clk 0:02:55.1]} 4... Be7 {[%clk 0:02:59.9]} 5. Nf3 {[%clk 0:02:54.4]}
5... O-O {[%clk 0:03:00]} 6. O-O {[%clk 0:02:51.3]} 6... dxc4 {[%clk 0:03:00.2]}
7. Qc2 {[%clk 0:02:44.9]} 7... a6 {[%clk 0:02:59.8]} 8. a4 {[%clk 0:02:44]} 8...
Bd7 {[%clk 0:02:58.7]} 9. Qxc4 {[%clk 0:02:40.7]} 9... Bc6 {[%clk 0:02:58.7]}
10. Bf4 {[%clk 0:02:41.6]} 10... Qd5 {[%clk 0:02:39.3]} 11. Qc1 {[%clk
0:02:33.2]} 11... Qh5 {[%clk 0:02:26.8]} 12. Bxc7 {[%clk 0:02:22.7]} 12... Rc8
{[%clk 0:02:24.7]} 13. Bf4 {[%clk 0:02:14.9]} 13... Nbd7 {[%clk 0:02:17.8]} 14.
Nc3 {[%clk 0:02:13.6]} 14... Ne4 {[%clk 0:01:57.8]} 15. Rd1 {[%clk 0:01:52.7]}
15... Ndf6 {[%clk 0:01:54.2]} 16. Qc2 {[%clk 0:01:10.7]} 16... Bb4 {[%clk
0:01:45.3]} 17. Qb3 {[%clk 0:01:04.6]} 17... Bxc3 {[%clk 0:01:36.7]} 18. bxc3
{[%clk 0:01:05.5]} 18... Bd5 {[%clk 0:01:37.3]} 19. Qb2 {[%clk 0:01:00.6]} 19...
Rxc3 {[%clk 0:01:21.4]} 20. Ne5 {[%clk 0:00:55.6]} 20... Rac8 {[%clk 0:01:10.3]}
21. Rac1 {[%clk 0:00:52.1]} 21... g5 {[%clk 0:00:58.8]} 22. Bd2 {[%clk
0:00:39.4]} 22... Rxc1 {[%clk 0:00:49.2]} 23. Rxc1 {[%clk 0:00:40.3]} 23...
Rxc1+ {[%clk 0:00:47.8]} 24. Bxc1 {[%clk 0:00:29.6]} 24... Kg7 {[%clk
0:00:41.9]} 25. f3 {[%clk 0:00:13.9]} 25... Nd6 {[%clk 0:00:42.2]} 26. e4 {[%clk
0:00:13.1]} 26... Ndxe4 {[%clk 0:00:40.5]} 27. g4 {[%clk 0:00:11.1]} 27... Qh4
{[%clk 0:00:37.2]} 28. fxe4 {[%clk 0:00:08.8]} 28... Qe1+ {[%clk 0:00:36.2]} 29.
Bf1 {[%clk 0:00:08.7]} 29... Nxe4 {[%clk 0:00:26.5]} 30. Qc2 {[%clk 0:00:03.5]}
30... h6 {[%clk 0:00:19]} 31. Nf3 {[%clk 0:00:03.3]} 31... Qb4 {[%clk
0:00:15.7]} 32. Bb2 {[%clk 0:00:02.7]} 32... b5 {[%clk 0:00:12.8]} 33. axb5
{[%clk 0:00:02.5]} 33... axb5 {[%clk 0:00:13.7]} 34. Ne5 {[%clk 0:00:02.9]}
34... Nf6 {[%clk 0:00:09.3]} 35. Nd3 {[%clk 0:00:02.6]} 35... Qc4 {[%clk
0:00:08.4]} 36. Qxc4 {[%clk 0:00:02]} 36... Bxc4 {[%clk 0:00:09.3]} 37. Ne5
{[%clk 0:00:02.5]} 37... Bxf1 {[%clk 0:00:08.4]} 38. Kxf1 {[%clk 0:00:03.4]}
38... Ne4 {[%clk 0:00:08.3]} 39. Ke2 {[%clk 0:00:03.5]} 39... f6 {[%clk
0:00:08.6]} 40. Nf3 {[%clk 0:00:03.2]} 40... Kf7 {[%clk 0:00:07.7]} 41. Ke3
{[%clk 0:00:03.5]} 41... Nd6 {[%clk 0:00:08.4]} 42. Nd2 {[%clk 0:00:04]} 42...
Ke7 {[%clk 0:00:07.6]} 43. Ba3 {[%clk 0:00:04.5]} 43... Kd7 {[%clk 0:00:07.5]}
44. Bxd6 {[%clk 0:00:05]} 44... Kxd6 {[%clk 0:00:08.4]} 45. Ne4+ {[%clk
0:00:05.8]} 45... Ke7 {[%clk 0:00:07.2]} 46. Ng3 {[%clk 0:00:06.1]} 46... Kd6
{[%clk 0:00:06.3]} 47. Ke4 {[%clk 0:00:05.2]} 47... b4 {[%clk 0:00:06.2]} 48.
Kd3 {[%clk 0:00:05.1]} 48... Kd5 {[%clk 0:00:05.2]} 49. Ne4 {[%clk 0:00:05.2]}
49... f5 {[%clk 0:00:05.5]} 50. Nf6+ {[%clk 0:00:05.6]} 50... Kd6 {[%clk
0:00:05.4]} 51. gxf5 {[%clk 0:00:05.8]} 51... exf5 {[%clk 0:00:06.3]} 52. Kc4
{[%clk 0:00:05.8]} 52... Ke6 {[%clk 0:00:04.7]} 53. Nd5 {[%clk 0:00:05]} 53...
b3 {[%clk 0:00:03.9]} 54. Nc3 {[%clk 0:00:05.3]} 54... b2 {[%clk 0:00:03.9]} 55.
Kb3 {[%clk 0:00:05.5]} 55... f4 {[%clk 0:00:03.6]} 56. Kxb2 {[%clk 0:00:05.9]}
56... g4 {[%clk 0:00:04.3]} 57. Kc2 {[%clk 0:00:06.1]} 57... h5 {[%clk
0:00:04.9]} 58. Kd3 {[%clk 0:00:05.7]} 58... h4 {[%clk 0:00:05.4]} 59. Ne2
{[%clk 0:00:04.3]} 59... Kf5 {[%clk 0:00:04.8]} 60. d5 {[%clk 0:00:02.5]} 60...
f3 {[%clk 0:00:03.4]} 61. Nf4 {[%clk 0:00:01.6]} 61... Kxf4 {[%clk 0:00:02.5]}
62. d6 {[%clk 0:00:01.3]} 62... g3 {[%clk 0:00:01.8]} 63. d7 {[%clk 0:00:01.7]}
63... gxh2 {[%clk 0:00:01.7]} 64. d8=Q {[%clk 0:00:01.9]} 64... h1=Q {[%clk
0:00:02.4]} 65. Qf6+ {[%clk 0:00:02.5]} 65... Kg3 {[%clk 0:00:02.8]} 66. Qg5+
{[%clk 0:00:02.9]} 66... Kh3 {[%clk 0:00:03.4]} 67. Qf5+ {[%clk 0:00:03.3]}
67... Kh2 {[%clk 0:00:03.4]} 68. Qf4+ {[%clk 0:00:03.4]} 68... Kh3 {[%clk
0:00:03.3]} 69. Qf5+ {[%clk 0:00:03.4]} 69... Kg3 {[%clk 0:00:04]} 70. Qg5+
{[%clk 0:00:03.4]} 70... Kf2 {[%clk 0:00:04.6]} 71. Qd2+ {[%clk 0:00:03.5]}
71... Kg1 {[%clk 0:00:04.8]} 72. Qe3+ {[%clk 0:00:03.1]} 72... Kg2 {[%clk
0:00:05.2]} 73. Qg5+ {[%clk 0:00:03]} 73... Kf1 {[%clk 0:00:04.8]} 74. Qc1+
{[%clk 0:00:02.8]} 74... Kg2 {[%clk 0:00:05.5]} 75. Qg5+ {[%clk 0:00:03]} 75...
Kh3 {[%clk 0:00:05.4]} 76. Qf5+ {[%clk 0:00:03]} 1/2-1/2

[Event "*** SCC Grand Prix: Titled Tuesday Blitz"]
[Site "Chess.com"]
[Date "2020.10.06"]
[Round "4"]
[White "sopo-tereladze"]
[Black "GianmarcoVaR"]
[Result "1/2-1/2"]
[WhiteElo "2309"]
[BlackElo "2467"]
[TimeControl "180+1"]
[EndTime "10:40:41 PDT"]
[Termination "Game drawn - insufficient material"]

1. e4 {[%clk 0:03:00.8]} 1... c6 {[%clk 0:02:55.9]} 2. d4 {[%clk 0:02:58.5]}
2... d5 {[%clk 0:02:56.4]} 3. Nc3 {[%clk 0:02:58.5]} 3... dxe4 {[%clk
0:02:56.7]} 4. Nxe4 {[%clk 0:02:59.4]} 4... Bf5 {[%clk 0:02:56.3]} 5. Ng3 {[%clk
0:02:58.2]} 5... Bg6 {[%clk 0:02:55.2]} 6. Nf3 {[%clk 0:02:59.1]} 6... Nd7
{[%clk 0:02:55.2]} 7. Bd3 {[%clk 0:03:00]} 7... Ngf6 {[%clk 0:02:54.4]} 8. h4
{[%clk 0:02:59.2]} 8... e6 {[%clk 0:02:54.6]} 9. h5 {[%clk 0:02:57.3]} 9... Bxd3
{[%clk 0:02:54.9]} 10. Qxd3 {[%clk 0:02:58.2]} 10... h6 {[%clk 0:02:55.5]} 11.
Be3 {[%clk 0:02:56.7]} 11... Qa5+ {[%clk 0:02:54.2]} 12. Bd2 {[%clk 0:02:53.5]}
12... Bb4 {[%clk 0:02:53.9]} 13. c3 {[%clk 0:02:44]} 13... Be7 {[%clk 0:02:53]}
14. c4 {[%clk 0:02:41.8]} 14... Qc7 {[%clk 0:02:52]} 15. O-O-O {[%clk 0:02:41]}
15... b5 {[%clk 0:02:49.1]} 16. Kb1 {[%clk 0:02:40.3]} 16... O-O {[%clk
0:02:41.8]} 17. Rhe1 {[%clk 0:02:33.9]} 17... bxc4 {[%clk 0:02:39.4]} 18. Qxc4
{[%clk 0:02:34.8]} 18... Rab8 {[%clk 0:02:32.3]} 19. Bc1 {[%clk 0:02:27.9]}
19... Rb4 {[%clk 0:02:29]} 20. Qc2 {[%clk 0:02:26.3]} 20... Rfb8 {[%clk
0:02:29]} 21. Ka1 {[%clk 0:02:26.4]} 21... Qa5 {[%clk 0:01:48.1]} 22. Bd2 {[%clk
0:02:10.5]} 22... Qa4 {[%clk 0:01:26.1]} 23. Qxa4 {[%clk 0:02:08.5]} 23... Rxa4
{[%clk 0:01:26.6]} 24. Bc3 {[%clk 0:02:01.8]} 24... Nd5 {[%clk 0:01:08.6]} 25.
Ne4 {[%clk 0:01:55.4]} 25... c5 {[%clk 0:00:57.2]} 26. dxc5 {[%clk 0:01:49.5]}
26... Nxc5 {[%clk 0:00:57.7]} 27. Nxc5 {[%clk 0:01:48.2]} 27... Bxc5 {[%clk
0:00:56.6]} 28. Bd4 {[%clk 0:01:45.7]} 28... Bxd4 {[%clk 0:00:48.3]} 29. Rxd4
{[%clk 0:01:46.6]} 29... Rbb4 {[%clk 0:00:37.6]} 30. Red1 {[%clk 0:01:39.9]}
30... Kf8 {[%clk 0:00:29.1]} 31. g3 {[%clk 0:01:26.9]} 31... Ke7 {[%clk
0:00:27.8]} 32. Rxb4 {[%clk 0:01:17.1]} 32... Rxb4 {[%clk 0:00:27.5]} 33. Nd4
{[%clk 0:01:12.5]} 33... Rc4 {[%clk 0:00:24.3]} 34. b3 {[%clk 0:01:06.8]} 34...
Rc5 {[%clk 0:00:21.4]} 35. Kb2 {[%clk 0:01:06]} 35... Nf6 {[%clk 0:00:20.2]} 36.
b4 {[%clk 0:01:01.4]} 36... Rc7 {[%clk 0:00:11.2]} 37. a4 {[%clk 0:00:51]} 37...
Nxh5 {[%clk 0:00:07.5]} 38. b5 {[%clk 0:00:50.8]} 38... Nf6 {[%clk 0:00:07]} 39.
Nc6+ {[%clk 0:00:50.1]} 39... Kf8 {[%clk 0:00:03.9]} 40. Rd8+ {[%clk 0:00:48.8]}
40... Ne8 {[%clk 0:00:04.4]} 41. Ra8 {[%clk 0:00:48.2]} 41... h5 {[%clk
0:00:04.3]} 42. Rxa7 {[%clk 0:00:47.6]} 42... Rxa7 {[%clk 0:00:04.2]} 43. Nxa7
{[%clk 0:00:48.5]} 43... g5 {[%clk 0:00:04.8]} 44. Nc8 {[%clk 0:00:46.4]} 44...
Nc7 {[%clk 0:00:03.4]} 45. b6 {[%clk 0:00:44.4]} 45... Na6 {[%clk 0:00:03.7]}
46. Nd6 {[%clk 0:00:39.5]} 46... f5 {[%clk 0:00:03.5]} 47. Nc4 {[%clk
0:00:32.6]} 47... Ke7 {[%clk 0:00:03.1]} 48. Kc3 {[%clk 0:00:27.2]} 48... h4
{[%clk 0:00:03.3]} 49. gxh4 {[%clk 0:00:26]} 49... gxh4 {[%clk 0:00:03.9]} 50.
Ne3 {[%clk 0:00:21.9]} 50... Kd6 {[%clk 0:00:03.1]} 51. Kc4 {[%clk 0:00:18.4]}
51... Kc6 {[%clk 0:00:02.4]} 52. a5 {[%clk 0:00:17.6]} 52... Nc5 {[%clk
0:00:02.6]} 53. Nf1 {[%clk 0:00:14.2]} 53... f4 {[%clk 0:00:02.1]} 54. Nh2
{[%clk 0:00:13.7]} 54... e5 {[%clk 0:00:02.5]} 55. Nf3 {[%clk 0:00:12]} 55... h3
{[%clk 0:00:02.7]} 56. Nxe5+ {[%clk 0:00:11.3]} 56... Kd6 {[%clk 0:00:03.1]} 57.
Nf3 {[%clk 0:00:12.2]} 57... Kc6 {[%clk 0:00:03.1]} 58. Ne5+ {[%clk 0:00:11.6]}
58... Kd6 {[%clk 0:00:03.1]} 59. Nf3 {[%clk 0:00:11]} 59... Kc6 {[%clk
0:00:01.2]} 60. Kd4 {[%clk 0:00:10.1]} 60... Nb3+ {[%clk 0:00:01.5]} 61. Ke4
{[%clk 0:00:09.5]} 61... Nd2+ {[%clk 0:00:01.6]} 62. Kxf4 {[%clk 0:00:10.4]}
62... Nc4 {[%clk 0:00:01.1]} 63. Kg3 {[%clk 0:00:09.2]} 63... Nxa5 {[%clk
0:00:01.3]} 64. Kxh3 {[%clk 0:00:09.6]} 64... Kxb6 {[%clk 0:00:01.9]} 65. Ne5
{[%clk 0:00:09.5]} 65... Kc5 {[%clk 0:00:02.5]} 66. f4 {[%clk 0:00:09.1]} 66...
Kd5 {[%clk 0:00:03.4]} 67. Kg4 {[%clk 0:00:09.3]} 67... Nb7 {[%clk 0:00:03.9]}
68. Kf5 {[%clk 0:00:07.9]} 68... Nd6+ {[%clk 0:00:03.9]} 69. Kf6 {[%clk
0:00:08.8]} 69... Ke4 {[%clk 0:00:04]} 70. Ng6 {[%clk 0:00:07.8]} 70... Nf5
{[%clk 0:00:03]} 71. Ke6 {[%clk 0:00:07.4]} 71... Nd4+ {[%clk 0:00:02.4]} 72.
Kd6 {[%clk 0:00:06.7]} 72... Ne2 {[%clk 0:00:01.8]} 73. f5 {[%clk 0:00:05.9]}
73... Kxf5 {[%clk 0:00:02]} 1/2-1/2